fUSD/lending_fUSD_20250622
["ID","MTS","AMOUNT","RATE_DAILY","PERIOD"]
[367014693,1750618107878,-798.37,0.00041095,120]
[367014695,1750618107908,-1644.46,0.00041095,120]
[367014697,1750618107938,-3222.64,0.00041095,120]
[367014699,1750618107969,-1926.74,0.00041095,120]
[367014701,1750618108000,-2239.21,0.00041095,120]
[367014703,1750618108032,-7643.2,0.00041095,120]
[367014706,1750618108062,-1166.01,0.00041095,120]
[367014708,1750618108092,-2666.2,0.00041095,120]
[367014710,1750618108122,-2018.48,0.00041095,120]
[367014712,1750618108152,-526.83,0.00041095,120]
[367014714,1750618108182,-693.97,0.00041095,120]
[367014716,1750618108212,-1468.74,0.00041095,120]
[367014718,1750618108242,-1128.28,0.00041095,120]
[367014721,1750618108272,-1065.42,0.00041095,120]
[367014723,1750618108301,-540.83,0.00041095,120]
[367014725,1750618108331,-620.08,0.00041095,120]
[367014727,1750618108360,-2046.04,0.00041095,120]
[367014729,1750618108391,-516.93,0.00041095,120]
[367014731,1750618108422,-4018.73,0.00041095,120]
[367014734,1750618108454,-1218.52,0.00041095,120]
[367014736,1750618108488,-4339.31,0.00041095,120]
[367014738,1750618108520,-747.17,0.00041095,120]
[367014740,1750618108553,-2591.77,0.00041095,120]
[367014742,1750618108584,-1926.15,0.00041095,120]
[367014744,1750618108615,-825.0,0.00041095,120]
[367014746,1750618108647,-200.0,0.00041096,120]
[367014748,1750618108680,-200.0,0.00041096,120]
[367014749,1750618108712,-200.0,0.00041096,120]
[367014750,1750618108744,-200.0,0.00041096,120]
[367014751,1750618108776,-200.0,0.000411,120]
[367014752,1750618108808,-200.0,0.000411,120]
[367014753,1750618108840,-200.0,0.000411,120]
[367014758,1750618109017,-200.0,0.00041123,120]
[367014761,1750618109048,-200.0,0.00041123,120]
[367014763,1750618109079,-200.0,0.00041123,120]
[367014765,1750618109117,-208.70399388,0.00041233,44]
[367014767,1750618109151,-760.69,0.00041369,120]
[367014769,1750618109183,-3387.38,0.00041369,120]
[367014772,1750618109214,-1041.59,0.00041369,120]
[367014774,1750618109244,-1114.56,0.00041369,120]
[367014776,1750618109274,-2822.49,0.00041369,60]
[367014778,1750618109303,-761.71,0.00041369,120]
[367014780,1750618109334,-4479.16,0.00041369,120]
[367014782,1750618109364,-1945.29,0.00041369,120]
[367014784,1750618109398,-1154.48,0.00041369,120]
[367014787,1750618109429,-1595.65,0.00041369,120]
[367014789,1750618109459,-14380.63,0.00041369,120]
[367014791,1750618109493,-13515.15,0.00041369,120]
[367014793,1750618109525,-932.02,0.00041369,120]
[367014795,1750618109559,-866.1,0.00041369,120]
[367014797,1750618109592,-536.14,0.00041369,120]
[367014800,1750618109623,-174.4267661,0.00041369,120]
[367014802,1750618109658,-490.0,0.00041369,120]
[367014804,1750618109691,-3375.57,0.00041369,120]
[367014806,1750618109724,-2189.67,0.00041369,120]
[367014809,1750618109758,-2234.78,0.00041369,120]
[367014811,1750618109789,-662.93,0.00041369,120]
[367014813,1750618109820,-4831.19,0.00041369,120]
[367014815,1750618109851,-4320.58,0.00041369,120]
[367014817,1750618109882,-1941.95,0.00041369,120]
[367014819,1750618109911,-2665.32,0.00041369,120]
[367014822,1750618109941,-17029.43,0.00041369,118]
[367014824,1750618109971,-2561.68,0.00041369,120]
[367014826,1750618110001,-5825.68,0.00041369,120]
[367014828,1750618110032,-2953.89,0.00041369,120]
[367014830,1750618110062,-1217.6,0.00041369,120]
[367014832,1750618110093,-7904.88,0.00041369,120]
[367014834,1750618110125,-3220.24,0.00041369,120]
[367014836,1750618110157,-4340.87,0.00041369,120]
[367014838,1750618110189,-15838.31,0.00041369,120]
[367014840,1750618110221,-5924.01,0.00041369,120]
[367014843,1750618110253,-1427.25,0.00041369,120]
[367014845,1750618110287,-2210.98,0.00041369,120]
[367014847,1750618110320,-2597.68,0.00041369,120]
[367014860,1750618110651,-535.89,0.00041369,120]
[367014862,1750618110687,-3369.96,0.00041369,120]
[367014864,1750618110720,-718.25,0.00041369,120]
[367014867,1750618110754,-4146.8,0.00041369,120]
[367014869,1750618110787,-1996.18,0.00041369,120]
[367014871,1750618110817,-1427.21,0.00041369,120]
[367014873,1750618110848,-1298.45,0.00041369,120]
[367014876,1750618110878,-798.37,0.00041369,120]
[367014878,1750618110908,-1644.46,0.00041369,120]
[367014880,1750618110939,-3222.64,0.00041369,120]
[367014882,1750618110969,-1926.74,0.00041369,120]
[367014884,1750618111000,-2239.21,0.00041369,120]
[367014886,1750618111031,-7643.2,0.00041369,120]
[367014888,1750618111062,-1166.01,0.00041369,120]
[367014890,1750618111092,-2666.2,0.00041369,120]
[367014893,1750618111123,-2018.48,0.00041369,120]
[367014894,1750618111155,-526.83,0.00041369,120]
[367014895,1750618111188,-693.97,0.00041369,120]
[367014896,1750618111221,-1468.74,0.00041369,120]
[367014897,1750618111253,-1128.28,0.00041369,120]
[367014898,1750618111285,-1065.42,0.00041369,120]
[367014899,1750618111315,-540.83,0.00041369,120]
[367014901,1750618111346,-620.08,0.00041369,120]
[367014903,1750618111378,-2046.04,0.00041369,120]
[367014906,1750618111412,-516.93,0.00041369,120]
[367014908,1750618111444,-4018.73,0.00041369,120]
[367014910,1750618111480,-1218.52,0.00041369,120]
[367014912,1750618111514,-4339.31,0.00041369,120]
[367014914,1750618111548,-747.17,0.00041369,120]
[367014917,1750618111583,-2591.77,0.00041369,120]
[367014919,1750618111616,-1926.15,0.00041369,120]
[367014921,1750618111651,-825.0,0.00041369,120]
[367014923,1750618111684,-150.32771533,0.00041452,120]
[367014925,1750618111716,-500.0,0.00041452,120]
[367014928,1750618111748,-500.0,0.00041452,120]
[367014930,1750618111779,-500.0,0.00041479,120]
[367014932,1750618111810,-500.0,0.00041479,120]
[367014934,1750618111843,-20267.47,0.000415,120]
[367014936,1750618111874,-19763.45,0.000415,120]
[367014939,1750618111905,-20329.17,0.000415,120]
[367014941,1750618111935,-20385.6,0.000415,120]
[367014943,1750618111964,-1105.92580233,0.000415,120]
[367014945,1750618111993,-1655.30276376,0.000415,120]
[367014947,1750618112027,-20020.52,0.000415,120]
[367014949,1750618112060,-19612.9,0.000415,120]
[367014951,1750618112092,-500.0,0.00041507,120]
[367014953,1750618112125,-500.0,0.00041507,120]
[367014955,1750618112158,-500.0,0.00041534,120]
[367014957,1750618112190,-500.0,0.00041534,120]
[367014959,1750618112223,-500.0,0.00041562,120]
[367014961,1750618112258,-500.0,0.00041562,120]
[367014963,1750618112292,-500.0,0.00041589,120]
[367014965,1750618112326,-500.0,0.00041589,120]
[367014967,1750618112360,-503.54433134,0.00041616,120]
[367014969,1750618112394,-500.0,0.00041616,120]
[367014971,1750618112430,-760.69,0.00041643,120]
[367014973,1750618112465,-3387.38,0.00041643,120]
[367014975,1750618112505,-1041.59,0.00041643,120]
[367014977,1750618112541,-1114.56,0.00041643,120]
[367014979,1750618112579,-2822.49,0.00041643,60]
[367014981,1750618112615,-761.71,0.00041643,120]
[367014983,1750618112653,-4479.16,0.00041643,120]
[367014985,1750618112694,-1945.29,0.00041643,120]
[367014988,1750618112735,-1154.48,0.00041643,120]
[367014989,1750618112775,-1595.65,0.00041643,120]
[367014991,1750618112814,-14380.63,0.00041643,120]
[367014994,1750618112853,-13515.15,0.00041643,120]
[367014995,1750618112890,-932.02,0.00041643,120]
[367014997,1750618112930,-536.14,0.00041643,120]
[367015000,1750618112967,-866.1,0.00041643,120]
[367015002,1750618113004,-490.0,0.00041643,120]
[367015004,1750618113042,-3375.57,0.00041643,120]
[367015006,1750618113076,-2189.67,0.00041643,120]
[367015008,1750618113110,-2234.78,0.00041643,120]
[367015010,1750618113147,-662.93,0.00041643,120]
[367015011,1750618113184,-4831.19,0.00041643,120]
[367015013,1750618113221,-4320.58,0.00041643,120]
[367015015,1750618113259,-1941.95,0.00041643,120]
[367015018,1750618113297,-2665.32,0.00041643,120]
[367015020,1750618113335,-17029.43,0.00041643,118]
[367015021,1750618113371,-2561.68,0.00041643,120]
[367015023,1750618113412,-5825.68,0.00041643,120]
[367015025,1750618113451,-1217.6,0.00041643,120]
[367015027,1750618113491,-2953.89,0.00041643,120]
[367015029,1750618113531,-7904.88,0.00041643,120]
[367015032,1750618113574,-3220.24,0.00041643,120]
[367015033,1750618113616,-4340.87,0.00041643,120]
[367015035,1750618113657,-15838.31,0.00041643,120]
[367015037,1750618113701,-5924.01,0.00041643,120]
[367015039,1750618113746,-1427.25,0.00041643,120]
[367015042,1750618113788,-2210.98,0.00041643,120]
[367015043,1750618113832,-2597.68,0.00041643,120]
[367015045,1750618113875,-535.89,0.00041643,120]
[367015048,1750618113917,-3369.96,0.00041643,120]
[367015049,1750618113958,-718.25,0.00041643,120]
[367015051,1750618113999,-4146.8,0.00041643,120]
[367015053,1750618114040,-1996.18,0.00041643,120]
[367015054,1750618114079,-1427.21,0.00041643,120]
[367015055,1750618114118,-798.37,0.00041643,120]
[367015056,1750618114157,-3222.64,0.00041643,120]
[367015058,1750618114195,-1644.46,0.00041643,120]
[367015060,1750618114231,-1926.74,0.00041643,120]
[367015062,1750618114267,-2239.21,0.00041643,120]
[367015064,1750618114303,-7643.2,0.00041643,120]
[367015066,1750618114338,-1166.01,0.00041643,120]
[367015068,1750618114371,-2666.2,0.00041643,120]
[367015070,1750618114408,-1298.45,0.00041643,120]
[367015072,1750618114442,-2018.48,0.00041643,120]
[367015074,1750618114479,-526.83,0.00041643,120]
[367015076,1750618114521,-693.97,0.00041643,120]
[367015078,1750618114566,-1468.74,0.00041643,120]
[367015080,1750618114614,-1128.28,0.00041643,120]
[367015083,1750618114664,-540.83,0.00041643,120]
[367015085,1750618114709,-1065.42,0.00041643,120]
[367015087,1750618114756,-620.08,0.00041643,120]
[367015090,1750618114807,-2046.04,0.00041643,120]
[367015092,1750618114853,-516.93,0.00041643,120]
[367015094,1750618114901,-4018.73,0.00041643,120]
[367015097,1750618114953,-1218.52,0.00041643,120]
[367015099,1750618114998,-4339.31,0.00041643,120]
[367015101,1750618115044,-747.17,0.00041643,120]
[367015103,1750618115086,-2591.77,0.00041643,120]
[367015106,1750618115130,-1926.15,0.00041643,120]
[367015108,1750618115169,-500.0,0.00041644,120]
[367015110,1750618115209,-500.0,0.00041671,120]
[367015112,1750618115250,-359.49837882,0.00041699,120]
[367015115,1750618115292,-760.83069876,0.00041917,120]
[367015117,1750618115337,-3387.53197909,0.00041917,120]
[367015119,1750618115378,-1041.72813418,0.00041917,120]
[367015122,1750618115423,-1114.67764359,0.00041917,120]
[367015124,1750618115466,-2822.70476587,0.00041917,60]
[367015126,1750618115512,-761.88918749,0.00041917,120]
[367015128,1750618115556,-4479.26173374,0.00041917,120]
[367015131,1750618115609,-1154.59223439,0.00041917,120]
[367015133,1750618115651,-1945.39551994,0.00041917,120]
[367015135,1750618115694,-1595.69569568,0.00041917,120]
[367015137,1750618115740,-14380.80882265,0.00041917,120]
[367015139,1750618115784,-13515.3164403,0.00041917,120]
[367015141,1750618115826,-932.11683168,0.00041917,120]
[367015144,1750618115867,-536.33766557,0.00041917,120]
[367015146,1750618115910,-866.18544212,0.00041917,120]
[367015148,1750618115950,-411.28743448,0.00041917,120]
[367015150,1750618115992,-3375.79961479,0.00041917,120]
[367015153,1750618116035,-2189.77187128,0.00041917,120]
[367015155,1750618116076,-2234.93176203,0.00041917,120]
[367015157,1750618116122,-662.99838894,0.00041917,120]
[367015159,1750618116165,-4831.31473242,0.00041917,120]
[367015162,1750618116211,-4320.61474761,0.00041917,120]
[367015164,1750618116255,-1942.07445016,0.00041917,120]
[367015166,1750618116296,-2665.47287117,0.00041917,120]
[367015168,1750618116341,-17029.47995535,0.00041917,118]
[367015171,1750618116385,-2561.78619792,0.00041917,120]
[367015173,1750618116424,-5825.72272034,0.00041917,120]
[367015175,1750618116462,-1217.67804435,0.00041917,120]
[367015178,1750618116504,-2954.02289508,0.00041917,120]
[367015180,1750618116543,-7904.99115647,0.00041917,120]
[367015182,1750618116584,-3220.43555784,0.00041917,120]
[367015185,1750618116626,-4340.89065865,0.00041917,120]
[367015187,1750618116668,-15838.47,0.00041917,120]
[367015190,1750618116709,-5924.12784288,0.00041917,120]
[367015192,1750618116750,-1427.25,0.00041917,120]
[367015194,1750618116790,-2211.06,0.00041917,120]
[367015196,1750618116829,-2597.8355686,0.00041917,120]
[367015197,1750618116867,-535.93,0.00041917,120]
[367015198,1750618116906,-3370.12,0.00041917,120]
[367015199,1750618116943,-718.25,0.00041917,120]
[367015201,1750618116980,-4146.8,0.00041917,120]
[367015203,1750618117017,-1996.26,0.00041917,120]
[367015205,1750618117054,-1427.30202303,0.00041917,120]
[367015208,1750618117091,-798.49,0.00041917,120]
[367015210,1750618117129,-3222.68,0.00041917,120]
[367015212,1750618117168,-1644.62,0.00041917,120]
[367015215,1750618117204,-1926.8,0.00041917,120]
[367015217,1750618117239,-2239.23126076,0.00041917,120]
[367015219,1750618117275,-7643.31923173,0.00041917,120]
[367015222,1750618117310,-1166.17,0.00041917,120]
[367015254,1750618118185,-2666.39457241,0.00041917,120]
[367015260,1750618118305,-1298.65,0.00041917,120]
[367015262,1750618118352,-2018.56,0.00041917,120]
[367015264,1750618118385,-526.91,0.00041917,120]
[367015267,1750618118416,-694.09,0.00041917,120]
[367015269,1750618118447,-1468.78,0.00041917,120]
[367015271,1750618118478,-1128.35777379,0.00041917,120]
[367015273,1750618118514,-540.91,0.00041917,120]
[367015275,1750618118550,-1065.54,0.00041917,120]
[367015278,1750618118584,-620.16,0.00041917,120]
[367015280,1750618118615,-2046.08,0.00041917,120]
[367015282,1750618118652,-517.01,0.00041917,120]
[367015284,1750618118684,-4018.87403632,0.00041917,120]
[367015286,1750618118718,-1218.64,0.00041917,120]
[367015288,1750618118749,-4339.5,0.00041917,120]
[367015290,1750618118780,-747.29,0.00041917,120]
[367015292,1750618118811,-2591.89,0.00041917,120]
[367015294,1750618118841,-216.60266024,0.00042,30]
[367015296,1750618118871,-3018.0579905,0.00042,120]
[367015299,1750618118901,-50000.0,0.00042,30]
[367015301,1750618118932,-1000.0,0.00042,120]
[367015303,1750618118961,-594.15,0.00042,120]
[367015305,1750618118990,-885.37620248,0.00042121,120]
[367015307,1750618119018,-1596.5,0.00042154,30]
[367015308,1750618119048,-923.24,0.00042154,30]
[367015309,1750618119078,-16485.72,0.00042191,120]
[367015310,1750618119107,-2942.73559147,0.000424,120]
[367015311,1750618119137,-200.0,0.00042429,120]
[367015312,1750618119166,-150.0,0.00042444,120]
[367015314,1750618119196,-16485.72,0.00042465,120]
[367015316,1750618119226,-1626.58887932,0.000425,60]
[367015318,1750618119256,-50000.0,0.000425,30]
[367015320,1750618119287,-500.0,0.0004255,120]
[367015322,1750618119317,-911.22,0.00042565,30]
[367015324,1750618119348,-152.0,0.00042694,31]
[367015327,1750618119380,-1000.0,0.000427,120]
[367015329,1750618119412,-2426.55769389,0.000427,120]
[367015331,1750618119443,-1000.0,0.000427,120]
[367015333,1750618119476,-1219.6076715,0.000427,120]
[367015335,1750618119515,-159.41,0.00042703,120]
[367015337,1750618119550,-16485.72,0.00042739,120]
[367015339,1750618119585,-150.0,0.00042766,30]
[367015341,1750618119619,-863.58720008,0.00042766,30]
[367015343,1750618119654,-150.0,0.00042766,30]
[367015346,1750618119686,-2411.21201311,0.00042766,30]
[367015348,1750618119718,-150.0,0.00042766,30]
[367015350,1750618119751,-8000.0,0.0004278,45]
[367015352,1750618119783,-7465.37565614,0.00042882,60]
[367015354,1750618119814,-5000.0,0.000429,95]
[367015356,1750618119845,-52122.53648493,0.000429,120]
[367015358,1750618119876,-1000.0,0.0004299,120]
[367015360,1750618119909,-50000.0,0.00043,43]
[367015362,1750618119939,-2888.62455647,0.00043,30]
[367015364,1750618119969,-6047.26364368,0.00043,120]
[367015366,1750618119998,-4179.0,0.00043,120]
[367015369,1750618120027,-2856.4755556,0.00043,120]
[367015370,1750618120055,-1292.80124173,0.00043,120]
[367015372,1750618120085,-1259.68041565,0.00043,120]
[367015374,1750618120115,-654.54296453,0.00043,120]
[367015376,1750618120144,-1679.0274291,0.00043,120]
[367015378,1750618120174,-2571.28978395,0.00043,120]
[367015380,1750618120204,-157.72663805,0.00043,120]
[367015382,1750618120233,-1000.0,0.00043,120]
[367015384,1750618120261,-10535.98,0.00043,60]
[367015385,1750618120290,-50000.0,0.00043,31]
[367015387,1750618120318,-308.8132445,0.00043,120]
[367015388,1750618120347,-7311.0,0.00043,120]
[367015390,1750618120375,-558.0,0.00043,90]
[367015391,1750618120405,-1000.0,0.00043,120]
[367015393,1750618120435,-1000.0,0.00043,120]
[367015395,1750618120464,-785.71,0.00043,120]
[367015396,1750618120495,-58341.437,0.00043,120]
[367015398,1750618120526,-58341.437,0.00043,120]
[367015400,1750618120557,-58341.438,0.00043,120]
[367015401,1750618120589,-58341.438,0.00043,120]
[367015403,1750618120619,-58341.438,0.00043,120]
[367015405,1750618120652,-16485.72,0.00043013,120]
[367015406,1750618120684,-3019.88340992,0.0004313,120]
[367015408,1750618120716,-160.0,0.00043151,90]
[367015410,1750618120747,-1000.0,0.000432,120]
[367015411,1750618120780,-16485.72,0.00043287,120]
[367015413,1750618120811,-532.69104014,0.0004329,120]
[367015415,1750618120842,-1000.0,0.000433,120]
[367015417,1750618120872,-150.0,0.00043311,120]
[367015418,1750618120903,-1000.0,0.0004333,120]
[367015420,1750618120934,-2000000.0,0.0004342,120]
[367015422,1750618120963,-1080.0,0.00043437,30]
[367015423,1750618120993,-1080.0,0.00043437,30]
[367015425,1750618121021,-574.39448909,0.0004344,120]
[367015427,1750618121051,-500.0,0.00043444,33]
[367015428,1750618121081,-500.0,0.00043444,33]
[367015430,1750618121111,-200.0,0.00043489,120]
[367015432,1750618121142,-15246.96273051,0.000435,120]
[367015433,1750618121173,-50000.0,0.000435,31]
[367015435,1750618121204,-2334.75,0.0004352,120]
[367015437,1750618121234,-46594.20678849,0.00043525,120]
[367015439,1750618121266,-16485.72,0.00043561,120]
[367015440,1750618121297,-1000.0,0.000436,120]
[367015442,1750618121330,-2727.43049503,0.000437,120]
[367015444,1750618121363,-150.0,0.00043793,120]
[367015451,1750618121587,-331.17817781,0.000438,120]
[367015453,1750618121621,-1000.0,0.000438,120]
[367015456,1750618121654,-1000.0,0.000438,120]
[367015458,1750618121687,-1000.0,0.000438,120]
[367015459,1750618121719,-483.8534611,0.000438,30]
[367015460,1750618121749,-760.71005763,0.000438,119]
[367015461,1750618121780,-1666.88,0.000438,90]
[367015462,1750618121810,-465.6,0.000438,120]
[367015463,1750618121840,-150.0,0.00043814,120]
[367015464,1750618121870,-16485.72,0.00043835,120]
[367015465,1750618121902,-1616.6707835,0.000439,120]
[367015466,1750618121931,-10000.0,0.000439,95]
[367015467,1750618121962,-150.0,0.00043929,120]
[367015468,1750618121993,-150.0,0.00043971,120]
[367015469,1750618122023,-1000.0,0.0004399,120]
[367015471,1750618122052,-1000.0,0.00043999,120]
[367015472,1750618122084,-50000.0,0.00044,44]
[367015474,1750618122114,-926.47469177,0.00044,120]
[367015476,1750618122144,-1500.0,0.00044,120]
[367015478,1750618122173,-249.54091311,0.00044,120]
[367015480,1750618122202,-1000.0,0.00044,120]
[367015482,1750618122231,-245.45,0.00044,120]
[367015484,1750618122261,-1500.0,0.00044,120]
[367015486,1750618122291,-50000.0,0.00044,31]
[367015488,1750618122320,-10000.0,0.00044,60]
[367015490,1750618122350,-530.690111,0.00044,57]
[367015492,1750618122381,-16485.72,0.00044109,120]
[367015495,1750618122413,-3031.08935741,0.000442,60]
[367015497,1750618122444,-4680.22457367,0.000442,120]
[367015499,1750618122473,-202487.0,0.0004422,30]
[367015501,1750618122509,-150.0,0.00044235,120]
[367015503,1750618122542,-150.0,0.00044335,120]
[367015505,1750618122573,-152.0,0.00044347,31]
[367015507,1750618122604,-16485.72,0.00044383,120]
[367015509,1750618122635,-299.82118842,0.0004439,120]
[367015511,1750618122665,-1000.0,0.000444,120]
[367015513,1750618122695,-2000.0,0.0004444,45]
[367015516,1750618122727,-409711.0,0.0004444,30]
[367015518,1750618122761,-500.64,0.00044444,33]
[367015520,1750618122793,-1388.87852578,0.000445,120]
[367015522,1750618122824,-30000.00000099,0.000445,120]
[367015524,1750618122856,-200.0,0.0004455,120]
[367015526,1750618122892,-16485.72,0.00044657,120]
[367015528,1750618122927,-973.16778815,0.000448,120]
[367015530,1750618122961,-150.0,0.00044806,120]
[367015533,1750618122993,-2294.0,0.0004487,120]
[367015535,1750618123023,-1717.69691042,0.000449,120]
[367015537,1750618123053,-2785.0,0.000449,120]
[367015539,1750618123090,-10000.0,0.000449,95]
[367015542,1750618123135,-208.70399388,0.000449,51]
[367015544,1750618123174,-16485.72,0.00044931,120]
[367015547,1750618123212,-438.0,0.00044986,120]
[367015549,1750618123250,-1000.0,0.0004499,120]
[367015551,1750618123287,-1000.0,0.00044999,120]
[367015554,1750618123325,-50000.0,0.00045,45]
[367015556,1750618123361,-362.08011484,0.00045,120]
[367015558,1750618123396,-1046.71604946,0.00045,120]
[367015561,1750618123431,-1082.31439845,0.00045,32]
[367015563,1750618123466,-618.23799824,0.00045,120]
[367015565,1750618123502,-3003.82511303,0.00045,30]
[367015567,1750618123539,-184.49430536,0.00045,120]
[367015570,1750618123576,-764.55007586,0.00045,120]
[367015572,1750618123616,-1078.19633948,0.00045,30]
[367015574,1750618123658,-1084.23874713,0.00045,120]
[367015577,1750618123699,-1000.0,0.00045,120]
[367015579,1750618123739,-2632.33,0.00045,120]
[367015582,1750618123778,-604.74096473,0.00045,120]
[367015584,1750618123817,-182822.51904758,0.00045,120]
[367016132,1750618153841,-286.46208824,0.00039999,31]
[367016135,1750618153883,-500.0,0.00039999,31]
[367016137,1750618153925,-446.86708487,0.00039999,31]
[367016139,1750618153967,-500.0,0.00039999,31]
[367016142,1750618154007,-500.0,0.00039999,31]
[367016144,1750618154048,-500.0,0.00039999,31]
[367016147,1750618154092,-500.0,0.00039999,31]
[367016149,1750618154136,-500.0,0.00039999,31]
[367016152,1750618154175,-335.12115127,0.00039999,31]
[367016154,1750618154214,-500.0,0.00039999,31]
[367016156,1750618154252,-500.0,0.00039999,31]
[367016159,1750618154292,-568.40814846,0.00039999,31]
[367016161,1750618154329,-3772.36085397,0.00039999,31]
[367016163,1750618154368,-3772.36085397,0.00039999,31]
[367016175,1750618154699,-3772.36085397,0.00039999,31]
[367016178,1750618154742,-3772.36085397,0.00039999,31]
[367016181,1750618154804,-153.0,0.0004002,60]
[367016183,1750618154844,-153.0,0.00040021,60]
[367016186,1750618154884,-153.0,0.00040021,60]
[367016188,1750618154924,-153.0,0.00040021,60]
[367016190,1750618154964,-153.0,0.00040021,60]
[367016193,1750618155004,-153.0,0.00040021,60]
[367016195,1750618155044,-153.0,0.00040021,60]
[367016197,1750618155083,-153.0,0.00040021,60]
[367016200,1750618155123,-153.0,0.00040021,60]
[367016202,1750618155160,-153.0,0.00040021,60]
[367016204,1750618155201,-153.0,0.00040021,60]
[367016207,1750618155238,-153.0,0.00040021,60]
[367016209,1750618155275,-153.0,0.00040021,60]
[367016211,1750618155312,-153.0,0.00040021,60]
[367016214,1750618155350,-160.07156828,0.00040173,90]
[367016217,1750618155451,-931.74,0.00041095,120]
[367016218,1750618155502,-836.55,0.00041095,120]
[367016219,1750618155557,-1127.97,0.00041095,120]
[367016221,1750618155600,-1762.54,0.00041095,120]
[367016223,1750618155643,-799.82,0.00041095,120]
[367016226,1750618155684,-8511.24,0.00041095,120]
[367016228,1750618155724,-2109.67,0.00041095,120]
[367016230,1750618155764,-3864.78,0.00041095,120]
[367016233,1750618155804,-4272.94,0.00041095,120]
[367016235,1750618155843,-1756.48,0.00041095,120]
[367016237,1750618155882,-1838.01,0.00041095,120]
[367016240,1750618155923,-3059.84,0.00041095,120]
[367016242,1750618155960,-1769.01,0.00041095,120]
[367016244,1750618155999,-580.63,0.00041095,120]
[367016247,1750618156036,-11832.14,0.00041095,120]
[367016249,1750618156075,-1958.17,0.00041095,120]
[367016251,1750618156113,-589.19,0.00041095,120]
[367016254,1750618156151,-1152.42,0.00041095,120]
[367016256,1750618156189,-551.09,0.00041095,120]
[367016258,1750618156226,-1197.21,0.00041095,120]
[367016261,1750618156265,-523.62,0.00041095,120]
[367016263,1750618156304,-1903.3,0.00041095,120]
[367016265,1750618156345,-490.0,0.00041095,120]
[367016268,1750618156386,-41951.75,0.00041095,120]
[367016270,1750618156426,-1828.61,0.00041095,120]
[367016272,1750618156468,-490.0,0.00041095,120]
[367016275,1750618156510,-3014.92,0.00041095,120]
[367016277,1750618156558,-1352.4,0.00041095,120]
[367016279,1750618156600,-1711.97,0.00041095,120]
[367016282,1750618156641,-490.0,0.00041095,120]
[367016284,1750618156683,-2797.07,0.00041095,120]
[367016286,1750618156725,-779.13,0.00041095,120]
[367016289,1750618156764,-1418.85,0.00041095,120]
[367016291,1750618156804,-2473.15,0.00041095,120]
[367016293,1750618156846,-989.05,0.00041095,120]
[367016296,1750618156886,-1632.78,0.00041095,120]
[367016298,1750618156925,-2080.35,0.00041095,120]
[367016301,1750618156965,-7153.65,0.00041095,120]
[367016303,1750618157004,-5241.95,0.00041095,120]
[367016305,1750618157043,-24605.25,0.00041095,120]
[367016308,1750618157082,-4415.41,0.00041095,120]
[367016310,1750618157120,-1155.43,0.00041095,120]
[367016312,1750618157158,-2128.15,0.00041095,120]
[367016314,1750618157196,-200.0,0.00041151,120]
[367016317,1750618157233,-200.0,0.00041151,120]
[367016319,1750618157274,-200.0,0.00041151,120]
[367016322,1750618157312,-200.0,0.00041178,120]
[367016324,1750618157350,-931.74,0.00041369,120]
[367016326,1750618157387,-836.55,0.00041369,120]
[367016329,1750618157427,-1127.97,0.00041369,120]
[367016331,1750618157468,-1762.54,0.00041369,120]